fUST/lending_fUST_20240926
["ID","MTS","AMOUNT","RATE_DAILY","PERIOD"]
[339187958,1727280161216,10000.0,0.000141,2]
[339187959,1727280169639,1700.0,0.000141,2]
[339187961,1727280177853,500.0,0.00013014,2]
[339187966,1727280337052,602.89,0.00021999,120]
[339187967,1727280337367,602.89,0.00021999,120]
[339187968,1727280337697,602.89,0.00021999,120]
[339187969,1727280338012,602.89,0.00021999,120]
[339187970,1727280338334,602.89,0.00021999,120]
[339187971,1727280338986,602.89,0.00021999,120]
[339187972,1727280339328,602.89,0.00021999,120]
[339187973,1727280339648,602.89,0.00021999,120]
[339187974,1727280339961,602.89,0.00021999,120]
[339187975,1727280340363,602.89,0.00021999,120]
[339187976,1727280340680,602.89,0.00021999,120]
[339187977,1727280341019,602.89,0.00021999,120]
[339187978,1727280341360,602.89,0.00021999,120]
[339187979,1727280341793,602.89,0.00021999,120]
[339187980,1727280342111,602.89,0.00021999,120]
[339187981,1727280342452,602.89,0.00021999,120]
[339187982,1727280342772,602.89,0.00021999,120]
[339187983,1727280343179,602.89,0.00021999,120]
[339187984,1727280343528,602.89,0.00021999,120]
[339187985,1727280344984,602.89,0.00021999,120]
[339187986,1727280345344,602.89,0.00021999,120]
[339187987,1727280345681,602.89,0.00021999,120]
[339187988,1727280346016,602.89,0.00021999,120]
[339187989,1727280346577,602.92453806,0.00021999,120]
[339187993,1727280447674,500.0,0.00021999,120]
[339187994,1727280448016,500.0,0.00021999,120]
[339187995,1727280448339,459.76330707,0.00021999,120]
[339188019,1727280632236,-238.6722682,0.00014847,2]
[339188020,1727280632246,-746.155214,0.00014847,2]
[339188021,1727280632259,-500.0,0.00014972,2]
[339188022,1727280632268,-300.0,0.00015214,2]
[339188023,1727280632277,-300.0,0.00015214,2]
[339188024,1727280632288,-10775.91802374,0.00015215,2]
[339188072,1727280638235,-7492.29406516,0.00015215,2]
[339188073,1727280638244,-746.155214,0.00015532,2]
[339188075,1727280638254,-620.06971751,0.00015924,2]
[339188077,1727280638263,-151.0,0.0001599,2]
[339188079,1727280638272,-151.0,0.0001599,2]
[339188081,1727280638281,-3148.22041316,0.00015999,2]
[339188093,1727280638393,-3813.47422903,0.00015999,2]
[339188511,1727280992649,500.0,0.00013014,2]
[339188657,1727281081730,500.0,0.00021999,120]
[339188659,1727281082101,500.0,0.00021999,120]
[339188660,1727281082774,500.0,0.00021999,120]
[339188662,1727281083353,500.0,0.00021999,120]
[339188666,1727281083695,500.0,0.00021999,120]
[339188668,1727281084044,500.0,0.00021999,120]
[339188671,1727281084420,500.0,0.00021999,120]
[339188673,1727281084765,500.0,0.00021999,120]
[339188675,1727281085557,525.34485724,0.00021999,120]
[339189543,1727281538409,500.0,0.00013014,2]
[339189546,1727281556260,-327.65467982,0.00014972,2]
[339189555,1727281627119,-172.34532018,0.00014972,2]
[339189556,1727281627141,-33.17444606,0.00015384,2]
[339189584,1727281683157,700.72196084,0.0001,2]
[339189864,1727281838474,-500.0,0.00015058,2]
[339189866,1727281838483,-237.660255,0.00015298,2]
[339189868,1727281838493,-1262.339745,0.00015814,2]
[339189873,1727281838533,-5883.84223468,0.00015814,2]
[339189875,1727281838543,-237.660255,0.00015983,2]
[339189877,1727281838554,-199.0,0.0001603,2]
[339189879,1727281838563,-153.0,0.000161,2]
[339189881,1727281838572,-153.0,0.000161,2]
[339189883,1727281838581,-163.5806244,0.000161,2]
[339189885,1727281838591,-300.0,0.00016199,2]
[339189887,1727281838600,-300.0,0.00016199,2]
[339189888,1727281838609,-2095.0,0.000162,2]
[339189890,1727281838619,-153.0,0.000162,2]
[339189893,1727281838630,-153.0,0.000162,2]
[339189895,1727281838641,-153.0,0.000162,2]
[339189897,1727281838651,-150.0,0.00016207,2]
[339189899,1727281838660,-150.0,0.00016207,2]
[339189901,1727281838670,-150.0,0.00016207,2]
[339189903,1727281838678,-150.0,0.00016207,2]
[339189905,1727281838688,-150.0,0.00016207,2]
[339189907,1727281838697,-1217.0,0.00016209,2]
[339189909,1727281838706,-150.0,0.00016209,2]
[339189911,1727281838715,-525.0,0.00016209,2]
[339189912,1727281838724,-412.035487,0.000163,2]
[339189914,1727281838733,-153.0,0.000163,2]
[339189916,1727281838743,-855.5131873,0.000163,2]
[339189918,1727281838752,-153.0,0.000163,2]
[339189920,1727281838762,-1279.34,0.000164,2]
[339189922,1727281838771,-300.0,0.000164,6]
[339189924,1727281838780,-241.65263312,0.00016409,2]
[339189926,1727281838790,-2414.53315985,0.00016409,2]
[339189928,1727281838799,-500.0,0.00016428,2]
[339189930,1727281838808,-269.0,0.00016438,2]
[339189932,1727281838817,-500.0,0.00016467,2]
[339189934,1727281838827,-2000.0,0.000165,2]
[339189936,1727281838836,-200.43510379,0.000165,2]
[339189938,1727281838846,-4981.85314841,0.00016521,2]
[339189940,1727281838855,-500.0,0.0001662,2]
[339189942,1727281838864,-500.0,0.0001662,2]
[339189944,1727281838873,-500.0,0.0001662,2]
[339189946,1727281838882,-500.0,0.0001662,2]
[339189948,1727281838893,-500.0,0.0001662,2]
[339189950,1727281838902,-500.0,0.0001662,2]
[339189952,1727281838911,-500.0,0.0001662,2]
[339189954,1727281838920,-500.0,0.0001662,2]
[339189956,1727281838929,-370.12467183,0.0001662,2]
[339190427,1727282156812,500.0,0.00013014,2]
[339190431,1727282287655,500.0,0.00021999,120]
[339190432,1727282287967,500.0,0.00021999,120]
[339190433,1727282288307,635.42576354,0.00021999,120]
[339190434,1727282300204,183.31613863,0.00021999,120]
[339190435,1727282303070,559.37,0.00021999,120]
[339190436,1727282308294,500.0,0.00021999,120]
[339190437,1727282308604,500.0,0.00021999,120]
[339190438,1727282308910,500.0,0.00021999,120]
[339190439,1727282309331,500.0,0.00021999,120]
[339190440,1727282309370,500.0,0.00021999,120]
[339190441,1727282309712,500.0,0.00021999,120]
[339190442,1727282310024,500.0,0.00021999,120]
[339190443,1727282310349,500.0,0.00021999,120]
[339190444,1727282310679,500.0,0.00021999,120]
[339190445,1727282311024,505.05278694,0.00021999,120]
[339190448,1727282321772,500.0,0.00021999,120]
[339190451,1727282329999,500.0,0.00021999,120]
[339190453,1727282332548,500.0,0.00021999,120]
[339190457,1727282339813,500.0,0.00021999,120]
[339190458,1727282343087,500.0,0.00021999,120]
[339190459,1727282360727,500.0,0.00021999,120]
[339190461,1727282370131,500.0,0.00021999,120]
[339190462,1727282371331,500.0,0.00021999,120]
[339190463,1727282371486,366.99,0.00021999,120]
[339190470,1727282387934,1802.04,0.00021999,120]
[339190471,1727282388260,1802.04,0.00021999,120]
[339190472,1727282388577,1802.04,0.00021999,120]
[339190473,1727282388922,1802.04,0.00021999,120]
[339190474,1727282389264,1802.04,0.00021999,120]
[339190475,1727282389585,1802.04,0.00021999,120]
[339190476,1727282389909,1802.04,0.00021999,120]
[339190477,1727282390235,1802.04,0.00021999,120]
[339190478,1727282390586,1802.04,0.00021999,120]
[339190479,1727282391116,1802.04,0.00021999,120]
[339190480,1727282391229,1802.04,0.00021999,120]
[339190481,1727282391588,1802.04,0.00021999,120]
[339190482,1727282391928,1802.04,0.00021999,120]
[339190483,1727282392256,1802.04,0.00021999,120]
[339190484,1727282392608,1802.04,0.00021999,120]
[339190485,1727282392934,1802.04,0.00021999,120]
[339190486,1727282393267,1802.04,0.00021999,120]
[339190487,1727282393637,1802.04,0.00021999,120]
[339190488,1727282394119,1802.04,0.00021999,120]
[339190489,1727282394315,1802.04,0.00021999,120]
[339190490,1727282394645,1802.04,0.00021999,120]
[339190491,1727282394998,1802.04,0.00021999,120]
[339190492,1727282395317,1802.04,0.00021999,120]
[339190493,1727282395672,1802.11088175,0.00021999,120]
[339190503,1727282422916,500.0,0.00021999,120]
[339190504,1727282435423,500.0,0.00021999,120]
[339190507,1727282470134,540.21383609,0.00021999,120]
[339190508,1727282472641,500.0,0.00021999,120]
[339190509,1727282479843,500.0,0.00021999,120]
[339190510,1727282491341,500.0,0.00021999,120]
[339190511,1727282495835,500.0,0.00021999,120]
[339190512,1727282503424,500.0,0.00021999,120]
[339190513,1727282509586,500.0,0.00021999,120]
[339190514,1727282520438,500.0,0.00021999,120]
[339190515,1727282525372,500.0,0.00021999,120]
[339190516,1727282525734,172.2,0.00021999,120]
[339190517,1727282549001,500.0,0.00021999,120]
[339190518,1727282568283,500.0,0.00021999,120]
[339190519,1727282569043,619.83801382,0.00021999,120]
[339190523,1727282612307,500.0,0.00021999,120]
[339190524,1727282639694,500.0,0.00021999,120]
[339190525,1727282647289,500.0,0.00021999,120]
[339190526,1727282672187,500.0,0.00021999,120]
[339190528,1727282684565,210.42546089,0.00021999,120]
[339190530,1727282694062,640.79,0.00021999,120]
[339190532,1727282695153,500.0,0.00021999,120]
[339190533,1727282700607,500.0,0.00021999,120]
[339190535,1727282712568,500.0,0.00013014,2]
[339190536,1727282714112,500.0,0.00021999,120]
[339190537,1727282740129,-248.43340309,0.00015038,2]
[339190538,1727282747578,619.30125694,0.00021999,120]
[339190539,1727282752121,-251.56659691,0.00015038,2]
[339190540,1727282752142,-27.32851063,0.00015467,2]
[339190541,1727282755580,537.09112232,0.00021999,120]
[339190542,1727282763408,500.0,0.00021999,120]
[339190544,1727282779727,500.0,0.00021999,120]
[339190548,1727282816251,503.62100844,0.00021999,120]
[339190549,1727282827120,-222.04194352,0.00015038,2]
[339190557,1727282941167,500.0,0.00021999,120]
[339190558,1727282950571,405.5421487,0.00021999,120]
[339190559,1727283007980,500.0,0.00021999,120]
[339190561,1727283016978,504.6660454,0.00021999,120]
[339190562,1727283017781,500.0,0.00021999,120]
[339190593,1727283032354,-277.95805648,0.00015038,2]
[339190595,1727283032363,-27.89085545,0.0001535,2]
[339190597,1727283032375,-656.24508876,0.0001535,2]
[339190599,1727283032386,-312.84239329,0.0001535,2]
[339190601,1727283032396,-210.33174437,0.00015467,2]
[339190603,1727283032405,-620.00348587,0.00015884,2]
[339190605,1727283032414,-300.0,0.00015999,2]
[339190607,1727283032423,-1041.85043898,0.00016,2]
[339190609,1727283032437,-958.14956102,0.00016,2]
[339190611,1727283032446,-153.0,0.00016,2]
[339190613,1727283032455,-153.0,0.00016,2]
[339190615,1727283032465,-153.0,0.00016,2]
[339190616,1727283032474,-153.0,0.00016,2]
[339190618,1727283032483,-153.0,0.00016028,2]
[339190620,1727283032493,-153.0,0.00016028,2]
[339190622,1727283032503,-153.0,0.00016028,2]
[339190624,1727283032512,-153.0,0.00016028,2]
[339190626,1727283032522,-153.0,0.000161,2]
[339190628,1727283032531,-525.0,0.00016227,2]
[339190630,1727283032540,-150.0,0.00016227,2]
[339190632,1727283032549,-1217.0,0.00016227,2]
[339190633,1727283032558,-150.0,0.00016227,2]
[339190635,1727283032567,-202.0,0.0001629,2]
[339190637,1727283032576,-904.75678716,0.00016328,2]
[339190677,1727283038675,-150.0,0.00016227,2]
[339190678,1727283038684,-5220.86242727,0.00016328,2]
[339190679,1727283038786,-1020.56276525,0.00016328,2]
[339190680,1727283038799,-1151.4,0.000164,2]
[339190681,1727283038809,-300.0,0.000164,6]
[339190682,1727283038819,-153.0,0.000164,2]
[339190683,1727283038829,-246.6,0.00016438,2]
[339190684,1727283038839,-153.0,0.000165,2]
[339190685,1727283038848,-153.0,0.000165,2]
[339190686,1727283038858,-1207.26657993,0.00016619,2]
[339190687,1727283038869,-582.82719077,0.0001662,2]
[339190688,1727283038878,-316.92493701,0.0001662,2]
[339190689,1727283038887,-620.00017429,0.00016678,2]
[339190690,1727283038897,-153.0,0.00016685,2]
[339190691,1727283038907,-2003.65332588,0.000167,2]
[339190692,1727283038916,-153.0,0.000167,2]
[339190693,1727283038926,-153.0,0.000167,2]
[339190694,1727283038935,-306.0,0.000167,2]
[339190695,1727283038945,-504.898,0.0001671,2]
[339190696,1727283038955,-246.6,0.00016712,2]
[339190697,1727283038964,-600.0,0.00016742,2]
[339190698,1727283038974,-600.0,0.00016742,2]
[339190699,1727283038984,-600.0,0.00016742,2]
[339190700,1727283038994,-500.0,0.0001687,2]
[339190701,1727283039004,-1000.0,0.00016886,2]
[339190702,1727283039014,-153.0,0.000169,2]
[339190703,1727283039023,-150.0,0.0001692,2]
[339190704,1727283039032,-153.0,0.00016975,2]
[339190705,1727283039042,-153.0,0.00016975,2]
[339190706,1727283039052,-153.0,0.00016975,2]
[339190707,1727283039062,-153.0,0.00016975,2]
[339190708,1727283039071,-153.0,0.00016975,2]
[339190709,1727283039080,-442.8241562,0.00016975,2]
[339190710,1727283039090,-246.6,0.00016986,2]
[339190711,1727283039099,-212.569255,0.0001699,2]
[339190712,1727283039109,-151.0,0.0001699,2]
[339190713,1727283039118,-212.569255,0.0001699,2]
[339190714,1727283039127,-151.0,0.0001699,2]
[339190715,1727283039136,-151.0,0.0001699,2]
[339190716,1727283039146,-151.0,0.0001699,2]
[339190717,1727283039155,-151.0,0.0001699,2]
[339190718,1727283039164,-1468.77538,0.0001699,2]
[339190719,1727283039174,-1468.77538,0.0001699,2]
[339190720,1727283039184,-151.0,0.0001699,2]
[339190721,1727283039193,-151.0,0.0001699,2]
[339190722,1727283039203,-1000.0,0.00017,17]
[339190723,1727283039212,-500.0,0.00017,2]
[339190724,1727283039222,-168.26862242,0.00017036,2]
[339190725,1727283039231,-500.0,0.00017125,2]
[339190726,1727283039241,-500.0,0.00017125,2]
[339190727,1727283039250,-500.0,0.00017125,2]
[339190728,1727283039260,-175.37980202,0.00017125,2]
[339190729,1727283039269,-268.93855894,0.00017126,2]
[339190730,1727283039278,-234.14544188,0.00017126,2]
[339190731,1727283039288,-500.0,0.00017126,2]
[339190732,1727283039297,-500.0,0.00017126,2]
[339190733,1727283039307,-454.47486383,0.00017126,2]
[339190734,1727283039316,-500.0,0.00017126,2]
[339190735,1727283039325,-22345.33743123,0.00017126,2]
[339190743,1727283040393,-6321.5,0.00017126,2]
[339190763,1727283043400,-869.94591213,0.00017126,2]
[339190765,1727283043411,-330.29329238,0.00017126,2]
[339190768,1727283043422,-995.76253536,0.00017126,2]
[339190777,1727283043512,-500.8457464,0.00017126,2]
[339190779,1727283043521,-1605.49326499,0.00017126,2]
[339190832,1727283046520,-4043.40223517,0.00017126,2]
[339190833,1727283046533,-756.324146,0.00017126,2]
[339190834,1727283046580,-4239.92954531,0.00017126,2]
[339190835,1727283061181,500.0,0.00021999,120]
[339190837,1727283120085,219.40018618,0.00014006,2]
[339190838,1727283120105,234.83841822,0.00014006,2]
[339190839,1727283120133,45.7613956,0.00014006,2]
[339190841,1727283169901,605.0,0.00015,10]
[339191203,1727283492192,500.0,0.00013014,2]
[339191929,1727283770852,1000.35923782,0.00021,60]
[339192422,1727283930154,-300.0,0.00016276,2]
[339192423,1727283930176,-1.17696701,0.00016276,2]
[339192713,1727284031114,-223.69416125,0.00016276,2]
[339192733,1727284040116,-76.30583875,0.00016276,2]
[339192734,1727284040136,-300.0,0.00016276,2]
[339192735,1727284040160,-150.0,0.00016277,2]
[339192736,1727284040183,-150.0,0.00016277,2]
[339192737,1727284040203,-150.0,0.00016277,2]
[339192738,1727284040225,-525.0,0.00016277,2]
[339192739,1727284040245,-150.0,0.00016277,2]
[339192740,1727284040264,-1217.0,0.00016277,2]
[339192742,1727284040283,-1036.26,0.000164,2]
[339192743,1727284040304,-303.88157,0.000164,6]
[339192744,1727284040324,-184.9,0.00016438,2]
[339192745,1727284040357,-3200.0,0.00016616,2]
[339192746,1727284040381,-300.0,0.00016616,2]
[339192747,1727284040402,-150.0,0.00016616,2]
[339192748,1727284040424,-357.0,0.0001671,2]
[339192749,1727284040449,-184.9,0.00016712,2]
[339192750,1727284040470,-500.0,0.00016746,2]
[339192751,1727284040493,-5262.51443875,0.00016807,2]
[339193423,1727284240815,-500.0,0.00015102,2]
[339193424,1727284240826,-300.0,0.00016806,2]
[339193425,1727284240835,-300.0,0.00016806,2]
[339193426,1727284240845,-3185.50506814,0.00016807,2]
[339193456,1727284246617,-932.64,0.000164,2]
[339193457,1727284246627,-14.49493186,0.00016807,2]
[339193458,1727284246636,-300.0,0.00016807,2]
[339193459,1727284246646,-150.0,0.00016807,2]
[339193460,1727284246657,-184.9,0.00016986,2]
[339193461,1727284246667,-150.0,0.00017097,2]
[339193462,1727284246677,-603.63328996,0.00017125,2]
[339193463,1727284246687,-2677.278179,0.00017138,2]
[339193464,1727284246697,-1369.052353,0.00017138,2]
[339193465,1727284246706,-204.370776,0.00017138,2]
[339193466,1727284246715,-2053.578531,0.00017138,2]
[339193467,1727284246724,-576.49801403,0.00017244,2]
[339193468,1727284246734,-4820.71211378,0.00017253,2]
[339193469,1727284246745,-184.9,0.0001726,2]
[339193470,1727284246754,-151.0,0.0001735,2]
[339193471,1727284246764,-151.0,0.0001735,2]
[339193472,1727284246774,-151.0,0.0001735,2]
[339193473,1727284246783,-370.014869,0.0001735,2]
[339193474,1727284246793,-370.014869,0.0001735,2]
[339193475,1727284246802,-403.919,0.0001735,2]
[339193476,1727284246811,-151.0,0.0001735,2]
[339193477,1727284246821,-151.0,0.0001735,2]
[339193478,1727284246830,-151.0,0.0001735,2]
[339193479,1727284246839,-179.59457,0.0001735,2]
[339193480,1727284246848,-179.59457,0.0001735,2]
[339193481,1727284246857,-151.0,0.0001735,2]
[339193482,1727284246866,-151.0,0.0001735,2]
[339193483,1727284246875,-151.0,0.0001735,2]
[339193484,1727284246885,-151.0,0.0001735,2]
[339193485,1727284246894,-151.0,0.0001735,2]
[339193486,1727284246903,-151.0,0.0001735,2]
[339193487,1727284246912,-151.0,0.0001735,2]
[339193488,1727284246921,-151.0,0.0001735,2]
[339193489,1727284246934,-423.171745,0.0001735,2]
[339193490,1727284246944,-423.171745,0.0001735,2]
[339193491,1727284246953,-151.0,0.0001735,2]
[339193492,1727284246963,-168.632078,0.0001735,2]
[339193493,1727284246972,-168.632078,0.0001735,2]
[339193494,1727284246981,-186.15331133,0.00017352,2]
[339193495,1727284246990,-2677.278179,0.00017353,2]
[339193496,1727284246999,-1369.052353,0.00017353,2]
[339193497,1727284247008,-204.370776,0.00017353,2]
[339193499,1727284247018,-2053.578531,0.00017353,2]
[339193500,1727284247027,-240.581065,0.00017353,2]
[339193501,1727284247036,-240.581065,0.00017353,2]
[339193502,1727284247047,-151.0,0.00017353,2]
[339193503,1727284247056,-151.0,0.00017353,2]
[339193504,1727284247066,-151.0,0.00017353,2]
[339193505,1727284247076,-151.0,0.00017353,2]
[339193507,1727284247085,-264.766651,0.00017353,2]
[339193508,1727284247094,-370.014869,0.00017353,2]
[339193509,1727284247103,-370.014869,0.00017353,2]
[339193510,1727284247112,-151.0,0.00017353,2]
[339193511,1727284247121,-151.0,0.00017353,2]
[339193512,1727284247131,-151.0,0.00017353,2]
[339193514,1727284247140,-151.0,0.00017353,2]
[339193515,1727284247149,-151.0,0.00017353,2]
[339193516,1727284247157,-151.0,0.00017353,2]
[339193517,1727284247167,-158.16833,0.00017353,2]
[339193518,1727284247176,-158.16833,0.00017353,2]
[339193520,1727284247185,-158.16833,0.00017353,2]
[339193521,1727284247194,-158.16833,0.00017353,2]
[339193522,1727284247204,-151.0,0.00017353,2]
[339193523,1727284247213,-191.380384,0.00017353,2]
[339193524,1727284247223,-300.150496,0.00017353,2]
[339193525,1727284247231,-171.033214,0.00017353,2]
[339193526,1727284247240,-171.033214,0.00017353,2]
[339193527,1727284247250,-171.033214,0.00017353,2]
[339193528,1727284247259,-171.033214,0.00017353,2]
[339193529,1727284247268,-151.0,0.00017353,2]
[339193530,1727284247279,-151.0,0.00017353,2]
[339193531,1727284247288,-151.0,0.00017353,2]
[339193532,1727284247298,-207.718254,0.00017353,2]
[339193533,1727284247307,-151.0,0.00017353,2]
[339193535,1727284247317,-151.0,0.00017353,2]
[339193536,1727284247326,-179.59457,0.00017353,2]
[339193537,1727284247335,-179.59457,0.00017353,2]
[339193538,1727284247344,-151.0,0.00017353,2]
[339193539,1727284247353,-151.0,0.00017353,2]
[339193540,1727284247362,-179.59457,0.00017353,2]
[339193541,1727284247371,-179.59457,0.00017353,2]
[339193543,1727284247381,-151.0,0.00017353,2]
[339193544,1727284247390,-151.0,0.00017353,2]
[339193545,1727284247399,-151.0,0.00017353,2]
[339193546,1727284247407,-151.0,0.00017353,2]
[339193547,1727284247417,-295.185416,0.00017353,2]
[339193548,1727284247426,-295.185416,0.00017353,2]
[339193549,1727284247436,-191.31233,0.00017353,2]
[339193550,1727284247446,-191.31233,0.00017353,2]
[339193551,1727284247455,-191.31233,0.00017353,2]
[339193552,1727284247464,-191.31233,0.00017353,2]
[339193553,1727284247474,-151.0,0.00017353,2]
[339193554,1727284247483,-151.0,0.00017353,2]
[339193555,1727284247492,-151.0,0.00017353,2]
[339193556,1727284247502,-151.0,0.00017353,2]
[339193557,1727284247511,-472.321445,0.00017353,2]
[339193558,1727284247521,-472.321445,0.00017353,2]
[339193559,1727284247532,-472.321445,0.00017353,2]
[339193560,1727284247542,-472.321445,0.00017353,2]
[339193561,1727284247551,-538.058221,0.00017353,2]
[339193562,1727284247560,-538.058221,0.00017353,2]
[339193563,1727284247570,-538.058221,0.00017353,2]
[339193564,1727284247579,-538.058221,0.00017353,2]
[339193565,1727284247588,-151.0,0.00017353,2]
[339193566,1727284247597,-151.0,0.00017353,2]
[339193567,1727284247608,-151.0,0.00017353,2]
[339193569,1727284247618,-151.0,0.00017353,2]
[339193570,1727284247627,-151.0,0.00017353,2]
[339193571,1727284247637,-151.0,0.00017353,2]
[339193572,1727284247646,-151.0,0.00017353,2]
[339193573,1727284247655,-151.0,0.00017353,2]
[339193575,1727284247665,-151.0,0.00017353,2]
[339193576,1727284247675,-151.0,0.00017353,2]
[339193577,1727284247684,-151.0,0.00017353,2]
[339193578,1727284247693,-151.0,0.00017353,2]
[339193579,1727284247702,-151.0,0.00017353,2]
[339193580,1727284247711,-151.0,0.00017353,2]
[339193581,1727284247720,-151.0,0.00017353,2]
[339193582,1727284247729,-151.0,0.00017353,2]
[339193583,1727284247738,-151.0,0.00017353,2]
[339193584,1727284247747,-151.0,0.00017353,2]
[339193585,1727284247756,-151.0,0.00017353,2]
[339193586,1727284247766,-287.884868,0.00017353,2]
[339193587,1727284247775,-151.0,0.00017353,2]
[339193588,1727284247784,-151.0,0.00017353,2]
[339193589,1727284247793,-1321.897842,0.00017353,2]
[339193590,1727284247803,-1321.897842,0.00017353,2]
[339193591,1727284247813,-1321.897842,0.00017353,2]
[339193592,1727284247822,-1321.897842,0.00017353,2]
[339193593,1727284247832,-151.0,0.00017353,2]
[339193594,1727284247841,-151.0,0.00017353,2]
[339193595,1727284247850,-423.171745,0.00017353,2]
[339193596,1727284247859,-423.171745,0.00017353,2]
[339193597,1727284247869,-423.171745,0.00017353,2]
[339193598,1727284247878,-423.171745,0.00017353,2]
[339193599,1727284247887,-423.171745,0.00017353,2]
[339193600,1727284247895,-423.171745,0.00017353,2]
[339193601,1727284247905,-151.0,0.00017353,2]
[339193602,1727284247914,-168.632078,0.00017353,2]
[339193603,1727284247923,-168.632078,0.00017353,2]
[339193604,1727284247933,-168.632078,0.00017353,2]
[339193605,1727284247942,-6857.32926472,0.00017353,2]
[339193607,1727284247951,-168.632078,0.00017353,2]
[339193608,1727284247959,-168.632078,0.00017353,2]
[339193609,1727284247969,-151.0,0.00017353,2]
[339193610,1727284247978,-168.632078,0.00017353,2]
[339193611,1727284247987,-151.0,0.00017353,2]
[339193612,1727284247996,-151.0,0.00017353,2]
[339193614,1727284248006,-151.0,0.00017353,2]
[339193615,1727284248015,-151.0,0.00017353,2]
[339193616,1727284248023,-151.0,0.00017353,2]
[339193617,1727284248033,-151.0,0.00017359,2]
[339193618,1727284248042,-151.0,0.00017359,2]
[339193619,1727284248051,-151.0,0.00017359,2]
[339193620,1727284248061,-151.0,0.00017359,2]
[339193621,1727284248070,-151.0,0.00017359,2]
[339193622,1727284248079,-151.0,0.00017359,2]
[339193623,1727284248088,-151.0,0.00017359,2]
[339193624,1727284248098,-208.003114,0.00017359,2]
[339193625,1727284248108,-151.0,0.00017359,2]
[339193626,1727284248117,-151.0,0.00017359,2]
[339193627,1727284248126,-1321.897842,0.00017359,2]
[339193628,1727284248136,-1321.897842,0.00017359,2]
[339193629,1727284248145,-151.0,0.0001736,2]
[339193630,1727284248154,-151.0,0.0001736,2]
[339193631,1727284248163,-151.0,0.0001736,2]
[339193632,1727284248172,-158.16833,0.0001736,2]
[339193633,1727284248180,-158.16833,0.0001736,2]
[339193634,1727284248189,-171.033214,0.0001736,2]
[339193635,1727284248199,-171.033214,0.0001736,2]
[339193636,1727284248208,-151.0,0.0001736,2]
[339193637,1727284248217,-151.0,0.0001736,2]
[339193638,1727284248227,-151.0,0.00017369,2]
[339193639,1727284248236,-151.0,0.00017369,2]
[339193640,1727284248246,-187.606077,0.00017369,2]
[339193641,1727284248256,-151.0,0.00017369,2]
[339193642,1727284248265,-151.0,0.00017369,2]
[339193643,1727284248274,-179.59457,0.00017369,2]
[339193645,1727284248284,-179.59457,0.00017369,2]
[339193646,1727284248293,-283.4233,0.00017369,2]
[339193647,1727284248302,-295.185416,0.00017369,2]
[339193648,1727284248314,-295.185416,0.00017369,2]
[339193649,1727284248332,-191.31233,0.00017369,2]
[339193650,1727284248341,-191.31233,0.00017369,2]